bitfinex/quotes_SOLUSD_20250625
["timestamp","ask_amount","ask_price","bid_price","bid_amount"]
[1750881657808,28.76,144.55,144.53,13.4950604]
[1750881658192,28.76,144.55,144.51,6.91975058]
[1750881658374,11.75005196,144.54,144.5,0.02]
[1750881658578,5.17397031,144.53,144.5,0.02]
[1750881658779,28.76,144.52,144.5,0.02]
[1750881662216,28.76,144.52,144.5,6.59608165]
[1750881662987,28.76,144.52,144.51,6.57608165]
[1750881663508,28.76,144.54,144.51,6.57608165]
[1750881663812,28.76,144.54,144.53,6.57608165]
[1750881664193,28.76,144.56,144.54,6.91850006]
[1750881664396,28.76,144.56,144.55,6.57608165]
[1750881665109,14.3619,144.59,144.55,6.57608165]
[1750881665286,14.3619,144.59,144.56,6.57608165]
[1750881665287,33.91055691,144.58,144.56,6.57608165]
[1750881665485,5.17082143,144.57,144.54,6.57608165]
[1750881665707,33.93126218,144.56,144.53,13.49493322]
[1750881666005,28.76,144.55,144.53,13.49493322]
[1750881666808,28.76,144.55,144.53,6.57608165]
[1750881667126,28.76,144.55,144.52,6.57608165]
[1750881667499,33.6027118,144.55,144.51,6.57608165]
[1750881667693,28.76,144.55,144.51,6.57608165]
[1750881668516,28.76,144.55,144.5,32.94020711]
[1750881668517,33.60262614,144.55,144.52,6.57608165]
[1750881669228,11.74804277,144.54,144.5,6.59608165]
[1750881669430,6.57608165,144.54,144.5,6.59608165]
[1750881669798,6.57608165,144.53,144.5,0.02]
[1750881670002,35.31608165,144.52,144.5,0.02]
[1750881670219,28.74,144.51,144.5,0.02]
[1750881670542,40.16003708,144.51,144.5,0.02]
[1750881670741,45.47468499,144.51,144.5,0.02]
[1750881671411,57.83257534,144.51,144.5,0.02]
[1750881671613,64.40865699,144.51,144.5,0.02]
[1750881672535,64.40865699,144.51,144.46,0.02]
[1750881672536,49.92143017,144.47,144.46,0.02]
[1750881672706,96.78999816,144.47,144.46,0.02]
[1750881674319,101.1924299,144.47,144.46,0.02]
[1750881674528,108.9505299,144.47,144.46,0.02]
[1750881674712,0.28432314,144.45,144.44,0.02]
[1750881674901,89.84497173,144.45,144.44,0.02]
[1750881677101,89.51845285,144.45,144.44,0.02]
[1750881678238,89.66061442,144.45,144.44,0.02]
[1750881679013,63.66061442,144.45,144.44,0.02]
[1750881679336,63.66061442,144.45,144.34,0.02]
[1750881679337,0.14216157,144.39,144.34,0.02]
[1750881679508,10.97851339,144.36,144.34,0.02]
[1750881679706,39.71851339,144.35,144.34,0.02]
[1750881680203,39.86067496,144.35,144.34,0.02]
[1750881681314,44.70999951,144.35,144.34,0.02]
[1750881682706,39.86067496,144.35,144.34,0.02]
[1750881682907,44.70999951,144.35,144.34,0.02]
[1750881683732,39.86067496,144.35,144.34,0.02]
[1750881683913,44.70999951,144.35,144.34,0.02]
[1750881684333,63.64397151,144.35,144.34,0.02]
[1750881685035,28.74,144.35,144.34,0.02]
[1750881686734,148.6,144.36,144.34,0.02]
[1750881686935,28.76,144.35,144.34,0.02]
[1750881690728,148.6,144.36,144.34,0.02]
[1750881690934,28.74,144.35,144.34,0.02]
[1750881692442,44.70999951,144.35,144.34,0.02]
[1750881692646,89.64397151,144.35,144.34,0.02]
[1750881692829,37.12067496,144.35,144.34,0.02]
[1750881693011,70.70999951,144.35,144.34,0.02]
[1750881694320,66.32704581,144.35,144.34,0.02]
[1750881695044,30.84932455,144.35,144.34,0.02]
[1750881695351,59.58932455,144.35,144.34,0.02]
[1750881696250,54.74,144.35,144.34,0.02]
[1750881696447,59.58932455,144.35,144.34,0.02]
[1750881696748,54.74,144.35,144.34,0.02]
[1750881696958,28.74,144.35,144.34,0.02]
[1750881700330,6.32,144.36,144.34,6.61555969]
[1750881700536,28.72,144.35,144.34,0.02]
[1750881700738,28.72,144.35,144.34,6.61555969]
[1750881701468,28.72,144.35,144.34,13.54364615]
[1750881702857,28.72,144.35,144.34,6.61555969]
[1750881703758,28.72,144.35,144.34,0.02]
[1750881706568,33.56932455,144.35,144.34,0.02]
[1750881706735,28.72,144.35,144.34,0.02]
[1750881708365,28.72,144.35,144.34,6.61555969]
[1750881709256,4.84850075,144.38,144.34,6.61555969]
[1750881709643,11.44370566,144.39,144.34,13.54355952]
[1750881709841,28.68,144.38,144.34,13.54355952]
[1750881710341,28.68,144.38,144.34,6.61555969]
[1750881710674,28.68,144.38,144.34,13.54362752]
[1750881711040,28.68,144.38,144.35,6.59555969]
[1750881711771,33.52839262,144.38,144.35,6.59555969]
[1750881711947,28.68,144.38,144.35,6.59555969]
[1750881712271,28.68,144.38,144.36,6.59555969]
[1750881713558,28.68,144.38,144.35,6.59555969]
[1750881714680,5.1414476,144.39,144.35,6.59555969]
[1750881714876,5.1414476,144.4,144.37,6.59555969]
[1750881715056,28.66,144.38,144.37,6.59555969]
[1750881715466,5.1414476,144.4,144.37,6.59555969]
[1750881715678,28.66,144.39,144.37,6.59555969]
[1750881716052,37.16735055,144.41,144.37,13.52214828]
[1750881716247,6.38918361,144.47,144.4,6.59555969]
[1750881716470,148.64,144.5,144.46,6.59555969]
[1750881716667,0.04,144.5,144.49,6.59555969]
[1750881716865,28.8,144.5,144.49,6.59555969]
[1750881717069,0.04,144.5,144.49,6.59555969]
[1750881717273,28.82,144.5,144.48,6.59555969]
[1750881717779,0.04,144.5,144.49,6.59555969]
[1750881717982,28.82,144.5,144.48,6.59555969]
[1750881718572,28.82,144.5,144.49,6.59555969]
[1750881719295,0.04,144.5,144.49,25.24520855]
[1750881719589,0.04,144.5,144.49,32.16610272]
[1750881720186,0.04,144.52,144.5,18.64964886]
[1750881720496,0.04,144.52,144.51,26.22152532]
[1750881720717,28.82,144.55,144.52,18.64964886]
[1750881720886,28.82,144.55,144.54,6.59555969]
[1750881721470,28.82,144.55,144.54,13.51405975]
[1750881722387,28.82,144.55,144.54,17.87096592]
[1750881722895,28.8,144.57,144.54,10.95246586]
[1750881723204,11.16133591,144.59,144.56,10.95246586]
[1750881723386,11.16133591,144.59,144.53,6.91884927]
[1750881723387,4.84194507,144.57,144.53,10.95246586]
[1750881723586,4.84194507,144.57,144.54,10.95246586]
[1750881725071,4.84194507,144.57,144.52,6.91938768]
[1750881725298,4.84194507,144.57,144.54,10.95246586]
[1750881725602,15.79441093,144.57,144.5,32.92033313]
[1750881725773,15.79441093,144.57,144.53,10.95246586]
[1750881726102,4.84194507,144.57,144.53,10.95246586]
[1750881727095,15.79441093,144.57,144.52,10.95246586]
[1750881727303,4.84194507,144.57,144.5,18.64964886]
[1750881727512,15.79441093,144.57,144.53,10.95246586]
[1750881729110,54.8,144.58,144.52,10.95246586]
[1750881729111,4.84261501,144.55,144.52,10.95246586]
[1750881729403,28.78,144.54,144.51,10.95246586]
[1750881729592,39.73246586,144.54,144.5,10.95246586]
[1750881729782,10.95246586,144.53,144.49,10.95246586]
[1750881730093,10.95246586,144.53,144.48,10.95246586]
[1750881730301,10.95246586,144.53,144.47,44.64964886]
[1750881730302,10.95246586,144.53,144.49,10.95246586]
[1750881730894,10.95246586,144.53,144.48,10.95246586]
[1750881731091,15.79608612,144.52,144.48,10.95246586]
[1750881731399,28.78,144.51,144.48,10.95246586]
[1750881731780,28.78,144.51,144.47,10.95246586]
[1750881732301,28.78,144.51,144.48,10.95246586]
[1750881732695,4.84429065,144.5,144.48,10.95246586]
[1750881733001,4.84429065,144.5,144.47,10.95246586]
[1750881733205,4.84429065,144.5,144.44,75.02065085]
[1750881733394,15.79675651,144.5,144.46,10.95246586]
[1750881733589,10.95246586,144.49,144.44,26.91018235]
[1750881733781,4.84429065,144.5,144.44,37.86264821]
[1750881733782,39.73246586,144.48,144.44,37.86264821]
[1750881734112,28.78,144.48,144.44,10.95246586]
[1750881734816,4.8452966,144.47,144.44,10.95246586]
[1750881736620,15.79776246,144.47,144.43,10.95246586]
[1750881737186,15.79776246,144.47,144.42,0.02]
[1750881737390,15.79776246,144.47,144.43,10.95246586]
[1750881737589,15.79776246,144.47,144.42,10.97246586]
[1750881737917,10.95246586,144.46,144.42,0.02]
[1750881738208,28.76,144.45,144.42,0.02]
[1750881738883,33.60625717,144.45,144.42,10.97246586]
[1750881739512,28.76,144.45,144.42,10.97246586]
[1750881739715,28.76,144.45,144.44,10.95246586]
[1750881744417,28.76,144.45,144.44,6.58293168]
[1750881747119,28.76,144.45,144.44,13.50622162]
[1750881747500,52.54822238,144.51,144.44,13.50622162]
[1750881747501,28.72,144.48,144.44,13.50622162]
[1750881747801,28.74,144.49,144.47,6.58293168]
[1750881748007,28.74,144.5,144.48,6.58293168]
[1750881748419,28.74,144.5,144.45,18.64964886]
[1750881748711,11.42621681,144.53,144.44,50.51583794]
[1750881748712,28.74,144.49,144.48,6.58293168]
[1750881750522,28.74,144.49,144.48,13.50430488]
[1750881750817,28.74,144.49,144.48,6.58293168]
[1750881753107,28.74,144.49,144.48,13.50430488]
[1750881753824,28.74,144.49,144.48,32.15395374]
[1750881754132,28.74,144.52,144.48,20.08723656]
[1750881754513,28.74,144.52,144.51,6.58293168]
[1750881754820,28.74,144.53,144.51,6.58293168]
[1750881755025,28.74,144.53,144.52,6.58293168]
[1750881755219,28.74,144.55,144.52,6.58293168]
[1750881755417,148.6,144.57,144.54,6.58293168]
[1750881755622,28.74,144.55,144.54,6.58293168]
[1750881756125,28.74,144.55,144.53,6.91888109]
[1750881756428,148.6,144.57,144.54,6.58293168]
[1750881756801,28.74,144.56,144.55,6.58293168]
[1750881758126,33.58229564,144.56,144.54,6.58293168]
[1750881758432,28.74,144.56,144.54,6.58293168]
[1750881759627,148.6,144.57,144.55,6.58293168]
[1750881759832,148.6,144.57,144.56,6.58293168]
[1750881760025,177.3,144.57,144.55,6.58293168]
[1750881760731,28.7,144.57,144.55,6.58293168]
[1750881761515,33.54194885,144.57,144.52,25.56910637]
[1750881761718,33.54194885,144.57,144.54,6.58293168]
[1750881762035,28.7,144.57,144.55,6.58293168]
[1750881762334,33.54196494,144.57,144.54,6.58293168]
[1750881762733,40.12489662,144.57,144.51,6.91978839]
[1750881763035,40.12489662,144.57,144.52,6.58293168]
[1750881763436,33.54196494,144.57,144.5,26.0]
[1750881763730,11.42554669,144.55,144.5,6.58293168]
[1750881763944,28.72,144.54,144.5,6.58293168]
[1750881765821,33.56297317,144.54,144.5,6.58293168]
[1750881766146,40.14590485,144.54,144.5,6.58293168]
[1750881767922,40.14590485,144.54,144.49,6.58293168]
[1750881769128,8.23023168,144.53,144.48,6.58293168]
[1750881770233,4.84362026,144.52,144.48,6.58293168]
[1750881770433,28.66,144.51,144.48,6.58293168]
[1750881770842,28.66,144.51,144.48,13.5042285]
[1750881771019,28.66,144.51,144.48,6.58293168]
[1750881771839,28.66,144.51,144.47,6.58293168]
[1750881772528,33.50414657,144.51,144.47,6.58293168]
[1750881773916,28.66,144.51,144.5,6.58293168]
[1750881774920,1.6473,144.53,144.5,6.58293168]
[1750881775233,28.68,144.52,144.5,6.58293168]
[1750881776127,153.44267508,144.55,144.51,6.58293168]
[1750881776334,28.66,144.54,144.51,6.58293168]
[1750881777138,28.66,144.54,144.52,6.58293168]
[1750881777532,28.66,144.54,144.51,13.5028285]
[1750881777733,28.66,144.54,144.48,6.9213732]
[1750881777942,28.66,144.54,144.5,6.58293168]
[1750881779053,33.50295564,144.54,144.5,6.58293168]
[1750881779937,33.50295564,144.54,144.49,6.92081545]
[1750881780238,33.50295564,144.54,144.5,6.58293168]
[1750881780437,40.08588732,144.54,144.49,6.58293168]
[1750881781148,6.58293168,144.51,144.47,6.58293168]
[1750881781350,43.01833168,144.5,144.45,6.58293168]
[1750881781653,28.64,144.49,144.45,6.58293168]
[1750881781853,6.58293168,144.48,144.44,0.02]
[1750881782351,11.42846668,144.47,144.44,0.02]
[1750881782553,28.64,144.46,144.44,0.02]
[1750881783048,6.58293168,144.45,144.44,0.02]
[1750881784343,40.06864154,144.46,144.44,0.02]
[1750881785252,19.67238604,144.45,144.44,0.02]
[1750881785568,64.60635804,144.45,144.44,0.02]
[1750881785926,26.0,144.43,144.42,0.02]
[1750881786130,61.26293168,144.43,144.42,0.02]
[1750881786544,66.10957019,144.43,144.42,0.02]
[1750881787950,85.18570376,144.43,144.42,0.02]
[1750881789265,6.58293168,144.43,144.42,0.02]
[1750881789568,28.68,144.43,144.42,0.02]
[1750881792665,33.52663851,144.43,144.42,0.02]
[1750881793070,28.68,144.43,144.42,0.02]
[1750881793563,33.52663851,144.43,144.42,0.02]
[1750881793866,40.10957019,144.43,144.42,0.02]
[1750881797974,40.25173176,144.43,144.42,0.02]
[1750881799055,40.10957019,144.43,144.42,0.02]
[1750881802072,66.10957019,144.43,144.42,0.02]
[1750881809183,59.18570376,144.43,144.42,0.02]
[1750881809381,64.3158477,144.43,144.42,0.02]
[1750881813824,6.58293168,144.37,144.36,0.02]
[1750881814012,67.64509325,144.37,144.36,0.02]
[1750881815609,72.49374601,144.37,144.36,0.02]
[1750881818104,65.91081433,144.37,144.36,0.02]
[1750881818306,72.49374601,144.37,144.36,0.02]
[1750881819430,4.84812679,144.39,144.36,0.02]
[1750881819640,28.62,144.38,144.36,6.60293168]
[1750881819937,28.62,144.38,144.36,0.02]
[1750881820435,35.20293168,144.38,144.36,0.02]
[1750881820913,4.84865276,144.37,144.36,0.02]
[1750881821736,11.43158444,144.37,144.36,0.02]
[1750881821947,11.57374601,144.37,144.36,0.02]
[1750881822540,16.72030441,144.37,144.36,0.02]
[1750881822945,191.32030441,144.37,144.36,0.02]
[1750881824845,35.65427641,144.37,144.36,0.02]
[1750881825075,43.46787641,144.37,144.36,0.02]
[1750881827644,49.91351924,144.37,144.36,0.02]
[1750881828450,43.46787641,144.37,144.36,0.02]
[1750881831665,29.07134473,144.37,144.36,0.02]
[1750881831967,35.65427641,144.37,144.36,0.02]
[1750881833575,16.72030441,144.37,144.36,0.02]
[1750881834438,42.72030441,144.37,144.36,0.02]
[1750881836689,42.57814284,144.37,144.36,0.02]
[1750881837065,42.72030441,144.37,144.36,0.02]
[1750881837286,18.79181043,144.36,144.34,0.02]
[1750881837468,61.34509325,144.35,144.34,0.02]
[1750881839466,66.1944178,144.35,144.34,0.02]
[1750881842302,71.35251854,144.35,144.34,0.02]
[1750881842990,64.28649054,144.35,144.34,0.02]
[1750881845729,10.14958686,144.35,144.34,0.02]
[1750881845897,66.1944178,144.35,144.34,0.02]
[1750881846089,71.35251854,144.35,144.34,0.02]
[1750881846396,45.35251854,144.35,144.34,0.02]
[1750881846999,64.76958686,144.35,144.34,0.02]
[1750881847193,71.35251854,144.35,144.34,0.02]
[1750881849103,45.35251854,144.35,144.34,0.02]
[1750881849303,64.28649054,144.35,144.34,0.02]
[1750881858630,70.73213337,144.35,144.34,0.02]
[1750881858825,64.28649054,144.35,144.34,0.02]
[1750881859640,70.73213337,144.35,144.34,0.02]
[1750881863755,76.99213337,144.35,144.34,0.02]
[1750881866553,70.40920169,144.35,144.34,0.02]
[1750881866752,76.99213337,144.35,144.34,0.02]
[1750881870774,41.92649054,144.35,144.34,0.02]
[1750881870970,70.54649054,144.35,144.34,0.02]
[1750881873448,4.84901401,144.36,144.34,8.12463168]
[1750881873749,33.79906808,144.35,144.34,8.12463168]
[1750881874299,28.62,144.35,144.34,8.12463168]
[1750881875006,4.84878065,144.37,144.34,8.12463168]
[1750881875193,28.62,144.36,144.35,6.58293168]
[1750881875371,33.46898863,144.36,144.35,6.58293168]
[1750881876565,38.6465479,144.36,144.35,6.58293168]
[1750881876965,33.46898863,144.36,144.35,6.58293168]
[1750881878699,33.46898863,144.36,144.34,8.12463168]
[1750881878871,33.46898863,144.36,144.34,0.02]
[1750881879072,38.64498057,144.36,144.34,0.02]
[1750881879268,5.17599194,144.35,144.34,0.02]
[1750881879570,33.46898863,144.36,144.34,0.02]
[1750881879970,38.64223391,144.36,144.34,0.02]
[1750881880171,33.46898863,144.36,144.34,0.02]
[1750881880784,38.64185258,144.36,144.34,0.02]
[1750881880981,33.46898863,144.36,144.34,0.02]
[1750881881206,33.46898863,144.36,144.34,6.60293168]
[1750881881393,38.64157586,144.36,144.34,6.60293168]
[1750881881585,33.46898863,144.36,144.34,6.60293168]
[1750881887794,5.16694776,144.37,144.35,6.58293168]
[1750881887991,5.16694776,144.37,144.34,0.02]
[1750881887992,148.6,144.38,144.36,6.58293168]
[1750881888308,28.6,144.37,144.36,6.58293168]
[1750881888483,28.6,144.37,144.35,6.58293168]
[1750881888992,33.44865435,144.37,144.35,6.58293168]
[1750881889313,28.6,144.37,144.35,6.58293168]
[1750881891003,33.44877791,144.37,144.35,6.58293168]
[1750881891311,28.6,144.36,144.35,6.58293168]
[1750881892026,28.6,144.36,144.34,6.60293168]
[1750881892212,33.44902022,144.36,144.34,0.02]
[1750881892510,40.0319519,144.36,144.34,0.02]
[1750881895714,6.58293168,144.35,144.34,0.02]
[1750881895916,6.72509325,144.35,144.34,0.02]
[1750881896214,179.42313779,144.35,144.34,0.02]
[1750881897698,184.27246234,144.35,144.34,0.02]
[1750881899715,35.67246234,144.35,144.34,0.02]
[1750881900630,43.79901143,144.35,144.34,0.02]
[1750881900814,26.0,144.32,144.31,0.02]
[1750881901001,67.58509325,144.32,144.31,0.02]
[1750881901722,72.43542584,144.32,144.31,0.02]
[1750881902594,77.60040159,144.32,144.31,0.02]
[1750881903237,70.87530834,144.32,144.31,0.02]
[1750881904518,59.45033259,144.32,144.31,0.02]
[1750881905443,54.6,144.32,144.31,0.02]
[1750881910649,59.45033259,144.32,144.31,0.02]
[1750881911143,54.6,144.32,144.31,0.02]
[1750881913053,59.45033259,144.32,144.31,0.02]
[1750881913837,66.17542584,144.32,144.31,0.02]
[1750881914040,71.62405878,144.32,144.31,0.02]
[1750881915743,90.27370764,144.32,144.31,0.02]
[1750881916650,65.0411271,144.32,144.31,0.02]
[1750881916847,38.61464239,144.32,144.31,0.02]
[1750881917032,45.19757407,144.32,144.31,0.02]
[1750881917359,45.33973564,144.32,144.31,0.02]
[1750881925765,38.75680396,144.32,144.31,0.02]
[1750881926262,45.33973564,144.32,144.31,0.02]
[1750881929349,45.62405878,144.32,144.31,0.02]
[1750881930550,70.85663932,144.32,144.31,0.02]
[1750881930753,77.3115514,144.32,144.31,0.02]
[1750881930975,85.1901514,144.32,144.31,0.02]
[1750881931663,66.54050254,144.32,144.31,0.02]
[1750881932066,19.07613357,144.31,144.3,0.02]
[1750881932268,37.26962966,144.31,144.3,0.02]
[1750881932476,30.82337505,144.31,144.3,0.02]
[1750881932980,35.67404374,144.31,144.3,0.02]
[1750881933152,42.12029835,144.31,144.3,0.02]
[1750881934960,35.67404374,144.31,144.3,0.02]
[1750881935169,42.12029835,144.31,144.3,0.02]
[1750881935369,35.67404374,144.31,144.3,0.02]
[1750881935861,42.12029835,144.31,144.3,0.02]
[1750881938366,16.88223331,144.31,144.3,0.02]
[1750881938565,16.59791017,144.31,144.3,0.02]
[1750881938764,16.74007174,144.31,144.3,0.02]
[1750881940462,42.74007174,144.31,144.3,0.02]
[1750881940769,71.34007174,144.31,144.3,0.02]
[1750881945671,42.59791017,144.31,144.3,0.02]
[1750881945870,77.56007174,144.31,144.3,0.02]
[1750881947078,77.55993174,144.31,144.3,0.02]
[1750881952688,77.84425488,144.31,144.3,0.02]
[1750881955225,96.49390374,144.31,144.3,0.02]
[1750881959722,102.94911599,144.31,144.3,0.02]
[1750881960110,70.36618431,144.31,144.3,0.02]
[1750881960433,70.49390374,144.31,144.3,0.02]
[1750881961105,85.11411599,144.31,144.3,0.02]
[1750881961419,73.49473394,144.31,144.3,0.02]
[1750881962216,46.25360037,144.31,144.3,0.02]
[1750881962407,46.39576194,144.31,144.3,0.02]
[1750881962606,46.68008508,144.31,144.3,0.02]
[1750881963030,76.95508225,144.31,144.3,0.02]
[1750881963827,70.49655541,144.31,144.3,0.02]
[1750881964032,76.95508225,144.31,144.3,0.02]
[1750881965230,76.95508225,144.31,144.28,0.02]
[1750881965231,52.68523357,144.29,144.28,0.02]
[1750881965429,87.84816525,144.29,144.28,0.02]
[1750881965640,80.23906525,144.29,144.28,0.02]
[1750881966712,86.69524911,144.29,144.28,0.02]
[1750881966919,96.71153724,144.29,144.28,0.02]
[1750881969614,68.13153724,144.29,144.28,0.02]
[1750881969816,102.95153724,144.29,144.28,0.02]
[1750881973860,68.13153724,144.29,144.28,0.02]
[1750881974026,102.95153724,144.29,144.28,0.02]
[1750881975631,68.13153724,144.29,144.28,0.02]
[1750881975832,102.95153724,144.29,144.28,0.02]
[1750881978482,123.74153724,144.29,144.28,0.02]
[1750881978753,102.95153724,144.29,144.28,0.02]
[1750881982231,100.59538103,144.29,144.28,0.02]
[1750881989344,100.59538103,144.29,144.25,0.02]
[1750881989345,44.64964886,144.26,144.25,0.02]
[1750881989553,61.90020605,144.26,144.25,0.02]
[1750881992135,68.35697074,144.26,144.25,0.02]
[1750881992556,153.71700944,144.25,144.24,0.02]
[1750881992753,20.08916836,144.25,144.24,0.02]
[1750881992955,26.54593305,144.25,144.24,0.02]
[1750881993159,45.33774348,144.25,144.24,0.02]
[1750881994561,38.88097879,144.25,144.24,0.02]
[1750881995585,14.67089357,144.25,144.24,0.02]
[1750882005087,33.32054243,144.25,144.24,0.02]
[1750882005393,39.77730712,144.25,144.24,0.02]
[1750882006487,33.32054243,144.25,144.24,0.02]
[1750882006777,39.77730712,144.25,144.24,0.02]
[1750882007481,14.67089357,144.25,144.24,0.02]
[1750882011101,5.16494709,144.25,144.24,0.02]
[1750882011299,5.16494709,144.26,144.24,1.6808]
[1750882011597,6.22,144.28,144.25,4.22677547]
[1750882011890,28.56,144.27,144.25,4.22677547]
[1750882012070,11.38494709,144.28,144.26,4.22677547]
[1750882012266,6.22,144.28,144.27,4.22677547]
[1750882012488,34.78,144.28,144.27,4.22677547]
[1750882014366,34.78,144.28,144.27,6.5985826]
[1750882014905,34.78,144.28,144.27,13.2574826]
[1750882015109,28.56,144.28,144.27,13.2574826]
[1750882015284,0.04,144.31,144.27,14.9050826]
[1750882015605,0.04,144.31,144.3,8.2461826]
[1750882015902,28.6,144.31,144.3,8.2461826]
[1750882016407,28.6,144.31,144.3,1.6476]
[1750882017806,28.6,144.31,144.3,8.2461826]
[1750882018122,28.6,144.31,144.3,15.17618953]
[1750882018490,0.04,144.31,144.3,15.17618953]
[1750882018703,0.04,144.32,144.3,15.17618953]
[1750882019014,28.58,144.32,144.31,6.5985826]
[1750882019197,0.04,144.32,144.31,6.5985826]
[1750882019398,28.58,144.32,144.31,6.5985826]
[1750882019595,0.04,144.32,144.31,25.24823146]
[1750882019785,0.04,144.32,144.31,32.05978413]
[1750882020428,0.04,144.32,144.31,38.98931084]
[1750882020622,0.04,144.32,144.31,12.7171826]
[1750882020923,0.04,144.32,144.31,38.29635817]
[1750882021292,28.54,144.34,144.31,38.29635817]
[1750882021517,28.54,144.34,144.33,6.5985826]
[1750882023415,28.54,144.34,144.33,13.52714907]
[1750882023790,0.04,144.36,144.33,13.52714907]
[1750882023993,28.54,144.35,144.33,6.92856647]
[1750882024186,28.54,144.35,144.34,6.5985826]
[1750882025910,0.04,144.36,144.34,6.5985826]
[1750882026094,28.54,144.35,144.33,6.92856647]
[1750882026290,28.54,144.35,144.34,6.5985826]
[1750882027107,0.04,144.36,144.34,6.5985826]
[1750882027302,28.52,144.35,144.33,6.92856647]
[1750882028107,28.52,144.35,144.31,24.76824886]
[1750882028527,28.52,144.35,144.33,6.5985826]
[1750882029120,28.52,144.35,144.31,6.5985826]
[1750882029121,39.96792455,144.35,144.31,6.5985826]
[1750882029790,33.36934195,144.35,144.31,6.5985826]
[1750882033933,33.36934195,144.35,144.31,13.52801792]
[1750882034326,33.36934195,144.35,144.31,6.5985826]
[1750882036033,33.36934195,144.35,144.31,13.52809469]
[1750882036536,33.36934195,144.35,144.32,6.5985826]
[1750882037335,28.52,144.35,144.33,6.5985826]
[1750882037507,28.52,144.35,144.34,6.5985826]
[1750882038842,28.52,144.35,144.34,13.52666906]
[1750882039021,28.52,144.35,144.34,6.92808646]
[1750882039228,28.52,144.35,144.34,13.52666906]
[1750882039619,0.04,144.36,144.34,13.52666906]
[1750882039946,0.04,144.36,144.35,26.80673146]
[1750882040115,0.04,144.36,144.35,53.0910546]
[1750882040312,0.04,144.36,144.35,53.23321617]
[1750882040712,0.04,144.36,144.35,60.16082268]
[1750882041445,0.04,144.36,144.35,63.58927171]
[1750882043337,0.04,144.36,144.35,52.80673146]
[1750882043547,0.04,144.36,144.35,6.5985826]
[1750882044945,0.04,144.36,144.34,6.5985826]
[1750882048359,0.04,144.36,144.35,6.5985826]
[1750882052855,0.04,144.36,144.35,13.52618911]
[1750882056353,0.04,144.36,144.35,32.17583797]
[1750882056544,0.04,144.36,144.35,58.46016111]
[1750882057041,0.04,144.36,144.35,59.15292176]
[1750882058041,0.04,144.36,144.35,33.29508333]
[1750882062069,0.04,144.36,144.35,26.69650073]
[1750882062376,0.04,144.36,144.35,33.29508333]
[1750882071685,0.04,144.36,144.35,26.69650073]
[1750882071872,0.04,144.36,144.35,33.29508333]
[1750882075084,0.04,144.38,144.36,19.07613357]
[1750882075294,0.04,144.4,144.39,44.64964886]
[1750882075503,0.04,144.4,144.39,58.68154436]
[1750882075789,150.2538,144.48,144.4,41.16323358]
[1750882075965,150.2538,144.48,144.41,33.00759405]
[1750882076404,1.6538,144.48,144.41,33.00759405]
[1750882076782,1.6538,144.48,144.41,42.181852]
[1750882076988,1.6538,144.48,144.41,42.46617514]
[1750882078097,1.6538,144.48,144.44,26.0]
[1750882078302,1.6538,144.48,144.47,6.5985826]
[1750882079401,0.04,144.48,144.47,13.52043488]
[1750882079602,0.04,144.48,144.47,32.17008374]
[1750882080011,0.04,144.48,144.47,58.17008374]
[1750882081113,0.04,144.48,144.46,6.5985826]
[1750882082794,0.04,144.48,144.45,39.52099817]
[1750882083010,0.04,144.48,144.46,6.5985826]
[1750882086898,0.04,144.48,144.47,6.5985826]
[1750882087099,0.04,144.48,144.47,25.24823146]
[1750882087302,0.04,144.48,144.47,32.96548399]
[1750882087499,0.04,144.5,144.49,44.64964886]
[1750882087731,0.04,144.5,144.49,71.79314508]
[1750882088325,0.04,144.5,144.49,71.93530665]